[Event "Late-Titled-Tuesday-Blitz-September-26-2023"]
[Site "Chess.com"]
[Date "2023.09.26"]
[Round "10"]
[White "laskakid"]
[Black "RebecaJimnz"]
[Result "1-0"]
[WhiteElo "2334"]
[BlackElo "2204"]
[TimeControl "180+1"]
[EndTime "15:51:30 PDT"]
[Termination "laskakid won by resignation"]

1. d4 {[%clk 0:03:00.9]} 1... d5 {[%clk 0:02:58.9]} 2. c4 {[%clk 0:03:01]} 2...
c6 {[%clk 0:02:59]} 3. cxd5 {[%clk 0:03:00.3]} 3... cxd5 {[%clk 0:02:59.4]} 4.
Bf4 {[%clk 0:03:00.5]} 4... Nf6 {[%clk 0:02:57.1]} 5. e3 {[%clk 0:03:00.2]} 5...
Nc6 {[%clk 0:02:56.3]} 6. Nc3 {[%clk 0:02:59.5]} 6... a6 {[%clk 0:02:49.6]} 7.
Be2 {[%clk 0:02:58.5]} 7... e6 {[%clk 0:02:50]} 8. Nf3 {[%clk 0:02:54.5]} 8...
Bd6 {[%clk 0:02:50.1]} 9. Bxd6 {[%clk 0:02:46.4]} 9... Qxd6 {[%clk 0:02:51]} 10.
O-O {[%clk 0:02:46.6]} 10... O-O {[%clk 0:02:51]} 11. Rc1 {[%clk 0:02:45.4]}
11... e5 {[%clk 0:02:49.2]} 12. dxe5 {[%clk 0:02:44.4]} 12... Nxe5 {[%clk
0:02:50.1]} 13. Nd4 {[%clk 0:02:27]} 13... Bg4 {[%clk 0:02:36.8]} 14. h3 {[%clk
0:02:20.1]} 14... Bxe2 {[%clk 0:02:34.4]} 15. Qxe2 {[%clk 0:02:20.3]} 15... Rac8
{[%clk 0:02:20.5]} 16. Rfd1 {[%clk 0:02:19.7]} 16... Qb4 {[%clk 0:02:09.1]} 17.
Nf3 {[%clk 0:02:01.5]} 17... Nc4 {[%clk 0:02:00.2]} 18. b3 {[%clk 0:01:48.6]}
18... Nb6 {[%clk 0:01:49.1]} 19. Rd4 {[%clk 0:01:27.1]} 19... Qa3 {[%clk
0:01:35.8]} 20. Rc2 {[%clk 0:01:18.2]} 20... Rc7 {[%clk 0:01:25.7]} 21. Rdd2
{[%clk 0:00:53.9]} 21... Rfc8 {[%clk 0:01:22.5]} 22. Nb1 {[%clk 0:00:46.3]}
22... Qd6 {[%clk 0:01:09.7]} 23. Rxc7 {[%clk 0:00:43.9]} 23... Rxc7 {[%clk
0:01:03.3]} 24. Rc2 {[%clk 0:00:40.3]} 24... Ne4 {[%clk 0:00:47.4]} 25. Nd4
{[%clk 0:00:36.6]} 25... Nd7 {[%clk 0:00:34]} 26. Qd1 {[%clk 0:00:25.4]} 26...
g6 {[%clk 0:00:28.7]} 27. Qc1 {[%clk 0:00:24.3]} 27... Rxc2 {[%clk 0:00:16.5]}
28. Qxc2 {[%clk 0:00:24.6]} 28... Qf6 {[%clk 0:00:11.8]} 29. f3 {[%clk
0:00:20.9]} 29... Ng3 {[%clk 0:00:07]} 30. Qc7 {[%clk 0:00:17.7]} 30... Qe5
{[%clk 0:00:04.6]} 31. Qxe5 {[%clk 0:00:15.7]} 31... Nxe5 {[%clk 0:00:05.5]} 32.
Kf2 {[%clk 0:00:15.4]} 32... Nh5 {[%clk 0:00:05.6]} 33. Nc3 {[%clk 0:00:15]}
33... Nd3+ {[%clk 0:00:05.3]} 34. Ke2 {[%clk 0:00:14.7]} 34... Nb4 {[%clk
0:00:04.5]} 35. a3 {[%clk 0:00:14.9]} 35... Nc6 {[%clk 0:00:03.4]} 36. Nxd5
{[%clk 0:00:14.3]} 36... Nxd4+ {[%clk 0:00:03.4]} 37. exd4 {[%clk 0:00:14.7]}
37... Ng7 {[%clk 0:00:02.7]} 38. Kd3 {[%clk 0:00:14.3]} 38... Ne6 {[%clk
0:00:02.8]} 39. Nf6+ {[%clk 0:00:12.6]} 39... Kg7 {[%clk 0:00:02.9]} 40. Nd7
{[%clk 0:00:12.6]} 40... f5 {[%clk 0:00:01.6]} 41. Nc5 {[%clk 0:00:12.1]} 41...
Nxc5+ {[%clk 0:00:01.5]} 42. dxc5 {[%clk 0:00:11.9]} 42... Kf7 {[%clk
0:00:02.4]} 43. Kd4 {[%clk 0:00:11.9]} 43... Ke6 {[%clk 0:00:03]} 44. b4 {[%clk
0:00:11.5]} 44... h5 {[%clk 0:00:02.1]} 45. a4 {[%clk 0:00:11.7]} 45... h4
{[%clk 0:00:02.2]} 46. b5 {[%clk 0:00:11.8]} 46... axb5 {[%clk 0:00:02.2]} 47.
axb5 {[%clk 0:00:12.1]} 47... g5 {[%clk 0:00:03.1]} 48. c6 {[%clk 0:00:11.2]}
48... bxc6 {[%clk 0:00:03.7]} 49. bxc6 {[%clk 0:00:11.1]} 49... g4 {[%clk
0:00:04.3]} 50. fxg4 {[%clk 0:00:09.8]} 50... fxg4 {[%clk 0:00:05.2]} 51. hxg4
{[%clk 0:00:09.5]} 51... Kd6 {[%clk 0:00:05.3]} 52. Ke4 {[%clk 0:00:09.3]} 52...
Kxc6 {[%clk 0:00:05.5]} 53. Kf5 {[%clk 0:00:09.4]} 53... Kd5 {[%clk 0:00:05.3]}
54. g5 {[%clk 0:00:08.8]} 54... Kd4 {[%clk 0:00:06.2]} 55. g6 {[%clk 0:00:09.2]}
55... Ke3 {[%clk 0:00:07.1]} 56. g7 {[%clk 0:00:09.7]} 56... Kf2 {[%clk
0:00:08]} 57. g8=Q {[%clk 0:00:10.3]} 57... h3 {[%clk 0:00:08.3]} 58. gxh3
{[%clk 0:00:09.7]} 58... Kf1 {[%clk 0:00:08.4]} 59. Kf4 {[%clk 0:00:10]} 1-0

[Event "Late-Titled-Tuesday-Blitz-September-26-2023"]
[Site "Chess.com"]
[Date "2023.09.26"]
[Round "10"]
[White "FairChess_on_YouTube"]
[Black "Iball95"]
[Result "1-0"]
[WhiteElo "3078"]
[BlackElo "2757"]
[TimeControl "180+1"]
[EndTime "15:51:43 PDT"]
[Termination "FairChess_on_YouTube won by checkmate"]

1. e4 {[%clk 0:03:00.9]} 1... c5 {[%clk 0:03:00.3]} 2. Nf3 {[%clk 0:02:53.9]}
2... e6 {[%clk 0:03:00]} 3. Bd3 {[%clk 0:02:52]} 3... Nc6 {[%clk 0:02:58.4]} 4.
O-O {[%clk 0:02:51.4]} 4... a6 {[%clk 0:02:48.3]} 5. Re1 {[%clk 0:02:47.1]} 5...
d6 {[%clk 0:02:45.9]} 6. c3 {[%clk 0:02:46.8]} 6... Nf6 {[%clk 0:02:41.1]} 7.
Bc2 {[%clk 0:02:46.7]} 7... Be7 {[%clk 0:02:39.5]} 8. d4 {[%clk 0:02:46.6]} 8...
cxd4 {[%clk 0:02:40.3]} 9. cxd4 {[%clk 0:02:47.2]} 9... O-O {[%clk 0:02:39.7]}
10. Nc3 {[%clk 0:02:46.6]} 10... b5 {[%clk 0:02:40.1]} 11. Bg5 {[%clk 0:02:41]}
11... h6 {[%clk 0:02:39.7]} 12. Bh4 {[%clk 0:02:39.4]} 12... Bb7 {[%clk
0:02:40.3]} 13. Qd2 {[%clk 0:02:38.8]} 13... Rc8 {[%clk 0:02:36.8]} 14. Rad1
{[%clk 0:02:38.5]} 14... Re8 {[%clk 0:02:32.1]} 15. Bb1 {[%clk 0:02:38.3]} 15...
b4 {[%clk 0:02:08.8]} 16. Na4 {[%clk 0:02:29.5]} 16... a5 {[%clk 0:01:32.6]} 17.
d5 {[%clk 0:02:21.6]} 17... Nb8 {[%clk 0:01:07.3]} 18. dxe6 {[%clk 0:02:11.1]}
18... fxe6 {[%clk 0:01:08.2]} 19. Nd4 {[%clk 0:02:06.7]} 19... Bf8 {[%clk
0:00:55.3]} 20. Qd3 {[%clk 0:02:03.1]} 20... Nbd7 {[%clk 0:00:50.4]} 21. Qb3
{[%clk 0:02:00.5]} 21... Qe7 {[%clk 0:00:47.9]} 22. f3 {[%clk 0:01:52.7]} 22...
Qf7 {[%clk 0:00:46.7]} 23. Nb5 {[%clk 0:01:44.9]} 23... Nc5 {[%clk 0:00:45.9]}
24. Nxc5 {[%clk 0:01:43.9]} 24... dxc5 {[%clk 0:00:46.8]} 25. Qc2 {[%clk
0:01:39.8]} 25... g5 {[%clk 0:00:42.6]} 26. Bg3 {[%clk 0:01:36.6]} 26... c4
{[%clk 0:00:41.1]} 27. Bd6 {[%clk 0:01:28.9]} 27... Bg7 {[%clk 0:00:38.9]} 28.
Be5 {[%clk 0:01:25.8]} 28... Bf8 {[%clk 0:00:31.6]} 29. Nd6 {[%clk 0:01:21.9]}
29... Bxd6 {[%clk 0:00:31.7]} 30. Rxd6 {[%clk 0:01:22.3]} 30... Nh5 {[%clk
0:00:15.8]} 31. Red1 {[%clk 0:01:21.6]} 31... Re7 {[%clk 0:00:15.4]} 32. Qa4
{[%clk 0:01:14.9]} 32... Nf4 {[%clk 0:00:12.9]} 33. Qxa5 {[%clk 0:01:14]} 33...
c3 {[%clk 0:00:12.2]} 34. bxc3 {[%clk 0:01:09.7]} 34... bxc3 {[%clk 0:00:13.1]}
35. Rd8+ {[%clk 0:01:07.8]} 35... Rxd8 {[%clk 0:00:11.5]} 36. Rxd8+ {[%clk
0:00:54.7]} 36... Kh7 {[%clk 0:00:10.8]} 37. Bxc3 {[%clk 0:00:49.4]} 37... Ne2+
{[%clk 0:00:07.7]} 38. Kf2 {[%clk 0:00:46.9]} 38... Nxc3 {[%clk 0:00:05.4]} 39.
Qxc3 {[%clk 0:00:47.4]} 39... e5 {[%clk 0:00:06.3]} 40. Qb3 {[%clk 0:00:40.6]}
40... Qg7 {[%clk 0:00:02.6]} 41. Bd3 {[%clk 0:00:35.8]} 41... g4 {[%clk
0:00:03.3]} 42. Bc4 {[%clk 0:00:35.3]} 42... Qf6 {[%clk 0:00:02.9]} 43. Ba6
{[%clk 0:00:26.6]} 43... Qg7 {[%clk 0:00:02.2]} 44. Bc4 {[%clk 0:00:22.3]} 44...
Qf6 {[%clk 0:00:02.6]} 45. Bg8+ {[%clk 0:00:14.1]} 45... Kg6 {[%clk 0:00:03.3]}
46. Qb4 {[%clk 0:00:11]} 46... gxf3 {[%clk 0:00:03]} 47. Rd6 {[%clk 0:00:10.5]}
47... fxg2+ {[%clk 0:00:02.3]} 48. Rxf6+ {[%clk 0:00:10.4]} 48... Kxf6 {[%clk
0:00:03.2]} 49. Qd6+ {[%clk 0:00:10.6]} 49... Kg5 {[%clk 0:00:04]} 50. Qxe7+
{[%clk 0:00:10.9]} 50... Kf4 {[%clk 0:00:04.9]} 51. Bd5 {[%clk 0:00:10.7]} 51...
g1=R {[%clk 0:00:04.1]} 52. Qf6+ {[%clk 0:00:10]} 52... Kg4 {[%clk 0:00:03.3]}
53. Be6+ {[%clk 0:00:10.1]} 53... Kh5 {[%clk 0:00:03.9]} 54. Bf7+ {[%clk
0:00:09.9]} 54... Kg4 {[%clk 0:00:04.8]} 55. Qf5+ {[%clk 0:00:10.1]} 55... Kh4
{[%clk 0:00:05.4]} 56. Qh5# {[%clk 0:00:10.7]} 1-0

[Event "Late-Titled-Tuesday-Blitz-September-26-2023"]
[Site "Chess.com"]
[Date "2023.09.26"]
[Round "10"]
[White "AlexandraBotez"]
[Black "agustinv04"]
[Result "1-0"]
[WhiteElo "2250"]
[BlackElo "2329"]
[TimeControl "180+1"]
[EndTime "15:51:57 PDT"]
[Termination "AlexandraBotez won by resignation"]

1. d4 {[%clk 0:03:00.9]} 1... Nf6 {[%clk 0:02:57.5]} 2. c4 {[%clk 0:02:58.6]}
2... e6 {[%clk 0:02:57.1]} 3. Nf3 {[%clk 0:02:57.9]} 3... d5 {[%clk 0:02:56.4]}
4. cxd5 {[%clk 0:02:56]} 4... exd5 {[%clk 0:02:56.3]} 5. Nc3 {[%clk 0:02:52.7]}
5... c5 {[%clk 0:02:52.5]} 6. Bg5 {[%clk 0:02:47.7]} 6... Be6 {[%clk 0:01:54.1]}
7. e3 {[%clk 0:02:47]} 7... Nc6 {[%clk 0:01:43.8]} 8. Bb5 {[%clk 0:02:41.8]}
8... c4 {[%clk 0:01:23.3]} 9. Ne5 {[%clk 0:02:38.6]} 9... Rc8 {[%clk 0:01:02.4]}
10. Qa4 {[%clk 0:02:29.4]} 10... Qb6 {[%clk 0:00:45.5]} 11. Bxc6+ {[%clk
0:02:18]} 11... bxc6 {[%clk 0:00:46.4]} 12. Bxf6 {[%clk 0:02:14.6]} 12... gxf6
{[%clk 0:00:47.3]} 13. Nf3 {[%clk 0:02:14.1]} 13... Bd6 {[%clk 0:00:45.7]} 14.
Qc2 {[%clk 0:02:08.8]} 14... Rb8 {[%clk 0:00:33.2]} 15. Rb1 {[%clk 0:02:07.4]}
15... Qc7 {[%clk 0:00:21.3]} 16. h3 {[%clk 0:02:00.9]} 16... Qd7 {[%clk
0:00:20.4]} 17. e4 {[%clk 0:01:28.4]} 17... O-O {[%clk 0:00:19.2]} 18. O-O
{[%clk 0:01:24.5]} 18... Kh8 {[%clk 0:00:19.1]} 19. Rfe1 {[%clk 0:01:20.6]}
19... Bxh3 {[%clk 0:00:19.2]} 20. g3 {[%clk 0:01:09.1]} 20... Qg4 {[%clk
0:00:17]} 21. Nh2 {[%clk 0:01:06.9]} 21... Qg6 {[%clk 0:00:15.2]} 22. e5 {[%clk
0:01:06.8]} 22... Qxc2 {[%clk 0:00:14.9]} 23. exd6 {[%clk 0:01:01.9]} 23... Rbd8
{[%clk 0:00:15]} 24. Re2 {[%clk 0:01:00.3]} 24... Qg6 {[%clk 0:00:14.6]} 25.
Rbe1 {[%clk 0:00:55.8]} 25... Rxd6 {[%clk 0:00:14.1]} 26. Re3 {[%clk 0:00:55.8]}
26... Re6 {[%clk 0:00:14.1]} 27. Nf3 {[%clk 0:00:52.2]} 27... Rxe3 {[%clk
0:00:13.5]} 28. Rxe3 {[%clk 0:00:53.1]} 28... Bg4 {[%clk 0:00:12.2]} 29. Nh4
{[%clk 0:00:51.9]} 29... Qc2 {[%clk 0:00:12.3]} 30. f3 {[%clk 0:00:46.5]} 30...
Bh5 {[%clk 0:00:11.7]} 31. Re2 {[%clk 0:00:46.9]} 31... Qc1+ {[%clk 0:00:10.9]}
32. Kf2 {[%clk 0:00:47.2]} 32... Qh6 {[%clk 0:00:11.4]} 33. Nf5 {[%clk
0:00:46.7]} 33... Qg5 {[%clk 0:00:11.5]} 34. g4 {[%clk 0:00:30]} 34... Bg6
{[%clk 0:00:10.8]} 35. Ng3 {[%clk 0:00:21.3]} 35... Bd3 {[%clk 0:00:11]} 36. Re3
{[%clk 0:00:13.3]} 36... Rb8 {[%clk 0:00:08.6]} 37. Na4 {[%clk 0:00:11.3]} 37...
a5 {[%clk 0:00:06.6]} 38. a3 {[%clk 0:00:07.8]} 38... Qf4 {[%clk 0:00:06.7]} 39.
Nh5 {[%clk 0:00:04.1]} 39... Qg5 {[%clk 0:00:06.3]} 40. Re7 {[%clk 0:00:02.9]}
40... c3 {[%clk 0:00:05]} 41. bxc3 {[%clk 0:00:02.9]} 41... Rb1 {[%clk
0:00:04.9]} 42. Re8+ {[%clk 0:00:02.6]} 42... Qg8 {[%clk 0:00:03.9]} 43. Rxg8+
{[%clk 0:00:03.2]} 43... Kxg8 {[%clk 0:00:04.8]} 44. Nxf6+ {[%clk 0:00:03.7]}
44... Kg7 {[%clk 0:00:03.9]} 45. Nd7 {[%clk 0:00:03.1]} 45... Ra1 {[%clk
0:00:04]} 46. Nac5 {[%clk 0:00:03.2]} 46... Rxa3 {[%clk 0:00:04.2]} 47. Nxd3
{[%clk 0:00:03.2]} 47... Rxc3 {[%clk 0:00:05.1]} 48. N3c5 {[%clk 0:00:03.9]}
48... Rc4 {[%clk 0:00:04.2]} 49. Ke3 {[%clk 0:00:04]} 49... a4 {[%clk
0:00:04.1]} 50. Nb6 {[%clk 0:00:03.8]} 50... Rb4 {[%clk 0:00:03.7]} 51. Nbxa4
{[%clk 0:00:03.6]} 51... Rb1 {[%clk 0:00:02]} 52. Nc3 {[%clk 0:00:03.5]} 52...
Ra1 {[%clk 0:00:02.5]} 53. Kf4 {[%clk 0:00:03.7]} 53... Ra8 {[%clk 0:00:03.4]}
54. Ke5 {[%clk 0:00:04]} 54... Ra3 {[%clk 0:00:03.5]} 55. N3a4 {[%clk
0:00:03.9]} 55... Rxf3 {[%clk 0:00:04]} 56. Kd6 {[%clk 0:00:04.4]} 56... f5
{[%clk 0:00:03.5]} 57. gxf5 {[%clk 0:00:04.3]} 57... h5 {[%clk 0:00:03.7]} 58.
Kxc6 {[%clk 0:00:05.2]} 58... h4 {[%clk 0:00:04.2]} 59. Nc3 {[%clk 0:00:04.7]}
59... Rxf5 {[%clk 0:00:04.4]} 60. Ne6+ {[%clk 0:00:04.3]} 60... Kf6 {[%clk
0:00:04.1]} 61. Nc5 {[%clk 0:00:03.6]} 61... h3 {[%clk 0:00:04.3]} 62. Nxd5+
{[%clk 0:00:03.7]} 62... Rxd5 {[%clk 0:00:03.6]} 63. Kxd5 {[%clk 0:00:04.6]}
63... h2 {[%clk 0:00:04.4]} 64. Ne4+ {[%clk 0:00:05.2]} 64... Ke7 {[%clk
0:00:03.8]} 65. Ng3 {[%clk 0:00:05.9]} 65... Kd7 {[%clk 0:00:04.4]} 66. Nh1
{[%clk 0:00:06.8]} 66... Kd8 {[%clk 0:00:05.3]} 67. Kc5 {[%clk 0:00:07.5]} 67...
Kd7 {[%clk 0:00:06.2]} 68. d5 {[%clk 0:00:08.4]} 68... Kd8 {[%clk 0:00:07.1]}
69. d6 {[%clk 0:00:09.3]} 69... Kd7 {[%clk 0:00:08]} 70. Kd5 {[%clk 0:00:09.5]}
70... Kd8 {[%clk 0:00:08.9]} 71. Ke6 {[%clk 0:00:10.4]} 71... Ke8 {[%clk
0:00:09.3]} 72. d7+ {[%clk 0:00:09.7]} 72... Kd8 {[%clk 0:00:10.2]} 73. Ng3
{[%clk 0:00:09.3]} 73... h1=Q {[%clk 0:00:11.1]} 74. Nxh1 {[%clk 0:00:09.7]} 1-0

[Event "Late-Titled-Tuesday-Blitz-September-26-2023"]
[Site "Chess.com"]
[Date "2023.09.26"]
[Round "10"]
[White "Druid24"]
[Black "Djager97"]
[Result "1-0"]
[WhiteElo "2712"]
[BlackElo "2584"]
[TimeControl "180+1"]
[EndTime "15:51:58 PDT"]
[Termination "Druid24 won on time"]

1. e4 {[%clk 0:02:31.4]} 1... e6 {[%clk 0:02:59.4]} 2. Nc3 {[%clk 0:02:30.8]}
2... d5 {[%clk 0:03:00.3]} 3. d4 {[%clk 0:02:31.7]} 3... Nf6 {[%clk 0:03:00]} 4.
Bg5 {[%clk 0:02:31]} 4... Be7 {[%clk 0:02:59.7]} 5. e5 {[%clk 0:02:30.1]} 5...
Nfd7 {[%clk 0:03:00.1]} 6. h4 {[%clk 0:02:31]} 6... h6 {[%clk 0:03:00]} 7. Bxe7
{[%clk 0:02:31.2]} 7... Qxe7 {[%clk 0:03:00.9]} 8. f4 {[%clk 0:02:31.8]} 8... a6
{[%clk 0:02:55.3]} 9. Nf3 {[%clk 0:02:32.7]} 9... c5 {[%clk 0:02:55.8]} 10. Qd2
{[%clk 0:02:31.3]} 10... Nc6 {[%clk 0:02:56.3]} 11. O-O-O {[%clk 0:02:28.3]}
11... b5 {[%clk 0:02:56.9]} 12. f5 {[%clk 0:02:24.2]} 12... b4 {[%clk
0:02:54.7]} 13. Ne2 {[%clk 0:02:21.5]} 13... exf5 {[%clk 0:02:43.1]} 14. Nf4
{[%clk 0:02:19.6]} 14... Nb6 {[%clk 0:02:43.6]} 15. dxc5 {[%clk 0:02:17]} 15...
Qxc5 {[%clk 0:02:44.5]} 16. Nxd5 {[%clk 0:02:08.4]} 16... O-O {[%clk 0:02:23.8]}
17. Nxb6 {[%clk 0:01:58.3]} 17... Qxb6 {[%clk 0:02:24.7]} 18. Bc4 {[%clk
0:01:59.1]} 18... Na5 {[%clk 0:02:03.7]} 19. Bd5 {[%clk 0:01:58.2]} 19... Bb7
{[%clk 0:02:04.2]} 20. Bxb7 {[%clk 0:01:54.1]} 20... Nxb7 {[%clk 0:01:56.3]} 21.
Qd3 {[%clk 0:01:50.8]} 21... Qe6 {[%clk 0:01:33.4]} 22. Kb1 {[%clk 0:01:47.1]}
22... Nc5 {[%clk 0:01:32.6]} 23. Qd5 {[%clk 0:01:43.6]} 23... Ne4 {[%clk
0:01:24.8]} 24. Rhe1 {[%clk 0:01:41.8]} 24... a5 {[%clk 0:01:18.4]} 25. Qxe6
{[%clk 0:01:39.4]} 25... fxe6 {[%clk 0:01:18.2]} 26. Rd7 {[%clk 0:01:40.1]}
26... Rf7 {[%clk 0:01:06.8]} 27. Red1 {[%clk 0:01:38]} 27... g5 {[%clk
0:00:45.4]} 28. hxg5 {[%clk 0:01:35]} 28... hxg5 {[%clk 0:00:46.3]} 29. Rxf7
{[%clk 0:01:31.8]} 29... Kxf7 {[%clk 0:00:47.2]} 30. Rd7+ {[%clk 0:01:31.4]}
30... Kg6 {[%clk 0:00:47.7]} 31. Nd4 {[%clk 0:01:31]} 31... Rh8 {[%clk
0:00:46.4]} 32. a3 {[%clk 0:01:27.4]} 32... bxa3 {[%clk 0:00:36.2]} 33. bxa3
{[%clk 0:01:28]} 33... f4 {[%clk 0:00:30.9]} 34. Nxe6 {[%clk 0:01:20.2]} 34...
Kf5 {[%clk 0:00:29.1]} 35. Nc7 {[%clk 0:01:18.9]} 35... Kxe5 {[%clk 0:00:22.8]}
36. Rd5+ {[%clk 0:01:19]} 36... Kf6 {[%clk 0:00:22.6]} 37. Rxa5 {[%clk
0:01:19.6]} 37... Rh2 {[%clk 0:00:19.6]} 38. a4 {[%clk 0:01:15.5]} 38... Rxg2
{[%clk 0:00:19]} 39. Nd5+ {[%clk 0:01:15.8]} 39... Kg6 {[%clk 0:00:17]} 40. Ra6+
{[%clk 0:01:14.3]} 40... Kh5 {[%clk 0:00:15.3]} 41. a5 {[%clk 0:01:15]} 41... f3
{[%clk 0:00:15]} 42. Re6 {[%clk 0:01:08.9]} 42... f2 {[%clk 0:00:14.7]} 43. Ne3
{[%clk 0:01:07.7]} 43... Rg1+ {[%clk 0:00:14.1]} 44. Kb2 {[%clk 0:01:07.2]}
44... Ng3 {[%clk 0:00:11.7]} 45. a6 {[%clk 0:01:05.2]} 45... f1=Q {[%clk
0:00:11.9]} 46. Nxf1 {[%clk 0:01:04.7]} 46... Rxf1 {[%clk 0:00:12.8]} 47. Re3
{[%clk 0:01:00.8]} 47... Kh4 {[%clk 0:00:06.7]} 48. c4 {[%clk 0:00:50.1]} 48...
Rf8 {[%clk 0:00:04.5]} 49. c5 {[%clk 0:00:47.1]} 49... Ra8 {[%clk 0:00:04.5]}
50. Re6 {[%clk 0:00:45.7]} 50... Nf5 {[%clk 0:00:03.1]} 51. c6 {[%clk
0:00:45.6]} 51... g4 {[%clk 0:00:03.4]} 52. c7 {[%clk 0:00:45]} 52... g3 {[%clk
0:00:03.6]} 53. Kb3 {[%clk 0:00:38.1]} 53... g2 {[%clk 0:00:03.7]} 54. Re1
{[%clk 0:00:38.1]} 54... Kg3 {[%clk 0:00:03.2]} 55. Kb4 {[%clk 0:00:38.1]} 55...
Kf2 {[%clk 0:00:03.5]} 56. Rc1 {[%clk 0:00:36.1]} 56... Ne3 {[%clk 0:00:03.6]}
57. Kb5 {[%clk 0:00:31]} 57... g1=Q {[%clk 0:00:03.7]} 58. c8=Q {[%clk
0:00:24.2]} 58... Rxc8 {[%clk 0:00:02.7]} 59. Rxc8 {[%clk 0:00:24.4]} 59... Qb1+
{[%clk 0:00:02.3]} 60. Kc6 {[%clk 0:00:22.9]} 60... Qc2+ {[%clk 0:00:02.5]} 61.
Kd7 {[%clk 0:00:22.2]} 61... Qf5+ {[%clk 0:00:02.4]} 62. Kc7 {[%clk 0:00:21.2]}
62... Nd5+ {[%clk 0:00:02.7]} 63. Kb8 {[%clk 0:00:20.9]} 63... Qe5+ {[%clk
0:00:02.5]} 64. Kb7 {[%clk 0:00:20.9]} 64... Qe7+ {[%clk 0:00:02.6]} 65. Kc6
{[%clk 0:00:19.8]} 65... Qe6+ {[%clk 0:00:02]} 66. Kb7 {[%clk 0:00:17.4]} 66...
Qb6+ {[%clk 0:00:01.9]} 67. Ka8 {[%clk 0:00:18]} 67... Qxa6+ {[%clk 0:00:02.2]}
68. Kb8 {[%clk 0:00:18.5]} 68... Qb6+ {[%clk 0:00:02.1]} 69. Ka8 {[%clk
0:00:19]} 69... Qa5+ {[%clk 0:00:02.3]} 70. Kb8 {[%clk 0:00:19.7]} 70... Qb5+
{[%clk 0:00:02.7]} 71. Ka8 {[%clk 0:00:19.7]} 71... Ke3 {[%clk 0:00:01.4]} 72.
Rb8 {[%clk 0:00:16.2]} 1-0

[Event "Late-Titled-Tuesday-Blitz-September-26-2023"]
[Site "Chess.com"]
[Date "2023.09.26"]
[Round "10"]
[White "Rainbow2014"]
[Black "azikom"]
[Result "1-0"]
[WhiteElo "2444"]
[BlackElo "2605"]
[TimeControl "180+1"]
[EndTime "15:52:09 PDT"]
[Termination "Rainbow2014 won on time"]

1. e4 {[%clk 0:03:00.9]} 1... c5 {[%clk 0:03:00.1]} 2. Nf3 {[%clk 0:03:00.5]}
2... e6 {[%clk 0:03:01]} 3. d4 {[%clk 0:03:00.8]} 3... cxd4 {[%clk 0:03:01]} 4.
Nxd4 {[%clk 0:03:01.7]} 4... a6 {[%clk 0:03:01.2]} 5. c4 {[%clk 0:03:00.6]} 5...
Nc6 {[%clk 0:02:58.1]} 6. Nc3 {[%clk 0:02:44.6]} 6... Nge7 {[%clk 0:02:52.9]} 7.
Nc2 {[%clk 0:02:41.5]} 7... g6 {[%clk 0:02:51.7]} 8. Be2 {[%clk 0:02:41.3]} 8...
Bg7 {[%clk 0:02:52]} 9. O-O {[%clk 0:02:41.3]} 9... O-O {[%clk 0:02:52.9]} 10.
Be3 {[%clk 0:02:40.9]} 10... f5 {[%clk 0:02:52.2]} 11. Qd2 {[%clk 0:02:38.9]}
11... fxe4 {[%clk 0:02:50]} 12. Nxe4 {[%clk 0:02:37.6]} 12... d5 {[%clk
0:02:49.3]} 13. Ng5 {[%clk 0:02:32.8]} 13... Bxb2 {[%clk 0:02:43.8]} 14. Rab1
{[%clk 0:02:29.4]} 14... Bg7 {[%clk 0:02:43.8]} 15. Bb6 {[%clk 0:02:28.5]} 15...
Qd6 {[%clk 0:02:39]} 16. Ne4 {[%clk 0:02:03.6]} 16... Qf4 {[%clk 0:02:33.2]} 17.
Qxf4 {[%clk 0:01:54.9]} 17... Rxf4 {[%clk 0:02:34.1]} 18. Nd6 {[%clk 0:01:55.6]}
18... Be5 {[%clk 0:02:17.4]} 19. g3 {[%clk 0:01:47]} 19... Rf8 {[%clk
0:02:12.2]} 20. Nxc8 {[%clk 0:01:45.8]} 20... Raxc8 {[%clk 0:01:59.7]} 21. Bg4
{[%clk 0:01:45.9]} 21... Nf5 {[%clk 0:01:53.7]} 22. cxd5 {[%clk 0:01:44.5]}
22... exd5 {[%clk 0:01:53.2]} 23. Rfe1 {[%clk 0:01:35.8]} 23... Bc3 {[%clk
0:01:35.8]} 24. Red1 {[%clk 0:01:26.2]} 24... Ne5 {[%clk 0:01:33.9]} 25. Be2
{[%clk 0:01:17]} 25... Rfd8 {[%clk 0:01:22.4]} 26. Nd4 {[%clk 0:01:03.8]} 26...
Nxd4 {[%clk 0:01:13.9]} 27. Bxd4 {[%clk 0:01:04.7]} 27... Bxd4 {[%clk
0:01:13.9]} 28. Rxd4 {[%clk 0:01:05.6]} 28... b5 {[%clk 0:00:56.9]} 29. Rbd1
{[%clk 0:01:02]} 29... Rc2 {[%clk 0:00:54.2]} 30. Kf1 {[%clk 0:00:56.4]} 30...
Rxa2 {[%clk 0:00:47.6]} 31. Rxd5 {[%clk 0:00:56.9]} 31... Rxd5 {[%clk
0:00:47.3]} 32. Rxd5 {[%clk 0:00:57.8]} 32... Nc6 {[%clk 0:00:33]} 33. Bg4
{[%clk 0:00:51.3]} 33... Kf7 {[%clk 0:00:17.5]} 34. Rd7+ {[%clk 0:00:48]} 34...
Ne7 {[%clk 0:00:17]} 35. Bf3 {[%clk 0:00:39.4]} 35... Kf6 {[%clk 0:00:15.8]} 36.
Rb7 {[%clk 0:00:27.5]} 36... Ra1+ {[%clk 0:00:14.6]} 37. Kg2 {[%clk 0:00:27.4]}
37... h5 {[%clk 0:00:13.7]} 38. Rb6+ {[%clk 0:00:23.5]} 38... Kf7 {[%clk
0:00:13.3]} 39. Be4 {[%clk 0:00:23.2]} 39... Nf5 {[%clk 0:00:12.8]} 40. h3
{[%clk 0:00:20.9]} 40... Ra3 {[%clk 0:00:12.2]} 41. Bb7 {[%clk 0:00:16.3]} 41...
Nd4 {[%clk 0:00:10.4]} 42. Bxa6 {[%clk 0:00:14.9]} 42... Ra5 {[%clk 0:00:08.5]}
43. Bb7 {[%clk 0:00:13.6]} 43... Nf5 {[%clk 0:00:07.8]} 44. Bd5+ {[%clk
0:00:13.6]} 44... Kg7 {[%clk 0:00:07.6]} 45. Be4 {[%clk 0:00:14]} 45... Ne7
{[%clk 0:00:05.6]} 46. g4 {[%clk 0:00:11.7]} 46... hxg4 {[%clk 0:00:05.5]} 47.
hxg4 {[%clk 0:00:12.6]} 47... Ra4 {[%clk 0:00:05.6]} 48. f3 {[%clk 0:00:12.9]}
48... Ra2+ {[%clk 0:00:05.5]} 49. Kg3 {[%clk 0:00:13.1]} 49... Rb2 {[%clk
0:00:06.1]} 50. Rb7 {[%clk 0:00:13.3]} 50... Kf6 {[%clk 0:00:06]} 51. g5+ {[%clk
0:00:13.4]} 51... Ke6 {[%clk 0:00:06.1]} 52. Rb6+ {[%clk 0:00:12.8]} 52... Kf7
{[%clk 0:00:06.2]} 53. Rf6+ {[%clk 0:00:13.1]} 53... Kg7 {[%clk 0:00:06.2]} 54.
Re6 {[%clk 0:00:13.7]} 54... Kf7 {[%clk 0:00:06.5]} 55. Rf6+ {[%clk 0:00:14.2]}
55... Kg7 {[%clk 0:00:06.7]} 56. Rb6 {[%clk 0:00:11.3]} 56... b4 {[%clk
0:00:06.3]} 57. Rb7 {[%clk 0:00:09.9]} 57... Kf7 {[%clk 0:00:06.3]} 58. Bd5+
{[%clk 0:00:10.4]} 58... Kf8 {[%clk 0:00:05.8]} 59. Bc4 {[%clk 0:00:08.7]} 59...
Ke8 {[%clk 0:00:04.2]} 60. f4 {[%clk 0:00:08.7]} 60... Kf8 {[%clk 0:00:04.2]}
61. Kf3 {[%clk 0:00:07.3]} 61... Rb1 {[%clk 0:00:04.2]} 62. Ke4 {[%clk
0:00:07.4]} 62... Rb2 {[%clk 0:00:04.4]} 63. Ke5 {[%clk 0:00:07.1]} 63... Rf2
{[%clk 0:00:02.9]} 64. Rb8+ {[%clk 0:00:06.2]} 64... Kg7 {[%clk 0:00:02.6]} 65.
Rb7 {[%clk 0:00:06.7]} 65... Kf8 {[%clk 0:00:02.6]} 66. Rxb4 {[%clk 0:00:07]}
66... Rf1 {[%clk 0:00:02.3]} 67. Rb7 {[%clk 0:00:06.9]} 67... Rf2 {[%clk
0:00:01.5]} 68. Bd5 {[%clk 0:00:07.1]} 68... Re2+ {[%clk 0:00:01.5]} 69. Be4
{[%clk 0:00:07.6]} 69... Nf5 {[%clk 0:00:01.2]} 70. Kf6 {[%clk 0:00:06.6]} 1-0